[Event "Schack-SM 2023: Veteran-SM 50+"]
[Site "Helsingborg Arena, Mellersta Stenbocksgatan 14, Helsingborg, Sweden"]
[Date "2023.07.05"]
[Round "5.5"]
[White "Andersson, Bjorn 1961"]
[Black "Svensson, Hakan"]
[Result "1-0"]
[TimeControl "90 minutes for 40 moves + 30 minutes for the rest of games + 30 seconds per move from move one."]
[WhiteElo "1791"]
[BlackElo "2054"]

1. d4 {[%clk 01:16:23]} {[%emt 00:14:36]} d5 {[%clk 01:30:54]} {[%emt
00:00:07]} 2. c4 {[%clk 01:16:41]} {[%emt 00:00:13]} e6 {[%clk 01:30:52]}
{[%emt 00:00:31]} 3. Nc3 {[%clk 01:16:27]} {[%emt 00:00:44]} c5 {[%clk
01:31:16]} {[%emt 00:00:07]} 4. cxd5 {[%clk 01:15:40]} {[%emt 00:01:16]} exd5
{[%clk 01:31:39]} {[%emt 00:00:07]} 5. Nf3 {[%clk 01:15:31]} {[%emt 00:00:39]}
Nf6 {[%clk 01:32:00]} {[%emt 00:00:09]} 6. Bg5 {[%clk 01:14:34]} {[%emt
00:01:27]} Be6 {[%clk 01:32:25]} {[%emt 00:00:05]} 7. e3 {[%clk 01:11:23]}
{[%emt 00:03:41]} c4 {[%clk 01:32:47]} {[%emt 00:00:09]} 8. e4 {[%clk
01:06:31]} {[%emt 00:05:22]} dxe4 {[%clk 01:23:30]} {[%emt 00:09:47]} 9. Nxe4
{[%clk 01:04:53]} {[%emt 00:02:08]} Bb4+ {[%clk 01:23:43]} {[%emt 00:00:17]} 10.
Nc3 {[%clk 01:02:56]} {[%emt 00:02:27]} Qa5 {[%clk 01:20:06]} {[%emt 00:04:06]}
11. Bd2 {[%clk 01:00:16]} {[%emt 00:03:10]} Nc6 {[%clk 01:19:50]} {[%emt
00:00:45]} 12. a3 {[%clk 01:00:04]} {[%emt 00:00:44]} Be7 {[%clk 01:19:48]}
{[%emt 00:00:31]} 13. Ne4 {[%clk 00:53:37]} {[%emt 00:06:57]} Qd5 {[%clk
01:18:06]} {[%emt 00:02:12]} 14. Nc3 {[%clk 00:50:42]} {[%emt 00:03:25]} Qa5
{[%clk 01:14:58]} {[%emt 00:03:38]} 15. Ng5 {[%clk 00:48:24]} {[%emt 00:02:47]}
Bd5 {[%clk 01:01:45]} {[%emt 00:13:43]} 16. Nxd5 {[%clk 00:44:50]} {[%emt
00:04:05]} Qxd5 {[%clk 01:02:05]} {[%emt 00:00:10]} 17. Rc1 {[%clk 00:42:56]}
{[%emt 00:02:24]} b5 {[%clk 01:01:29]} {[%emt 00:01:05]} 18. Be3 {[%clk
00:39:45]} {[%emt 00:03:42]} Rd8 {[%clk 00:56:05]} {[%emt 00:05:54]} 19. Nf3
{[%clk 00:35:43]} {[%emt 00:04:32]} O-O {[%clk 00:55:02]} {[%emt 00:01:32]} 20.
Be2 {[%clk 00:36:04]} {[%emt 00:00:10]} Ne4 {[%clk 00:53:52]} {[%emt 00:01:39]}
21. O-O {[%clk 00:35:53]} {[%emt 00:00:42]} Bf6 {[%clk 00:52:11]} {[%emt
00:02:11]} 22. a4 {[%clk 00:36:11]} {[%emt 00:00:13]} a6 {[%clk 00:52:26]}
{[%emt 00:00:15]} 23. axb5 {[%clk 00:36:35]} {[%emt 00:00:06]} axb5 {[%clk
00:52:50]} {[%emt 00:00:05]} 24. Qc2 {[%clk 00:36:09]} {[%emt 00:00:57]} Nb4
{[%clk 00:46:53]} {[%emt 00:06:25]} 25. Qb1 {[%clk 00:35:23]} {[%emt 00:01:17]}
Ra8 {[%clk 00:46:03]} {[%emt 00:01:17]} 26. Nd2 {[%clk 00:34:45]} {[%emt
00:01:11]} Nxd2 {[%clk 00:44:34]} {[%emt 00:01:59]} 27. Bxd2 {[%clk 00:33:09]}
{[%emt 00:02:05]} Qd6 {[%clk 00:39:10]} {[%emt 00:05:55]} 28. Rcd1 {[%clk
00:25:34]} {[%emt 00:08:05]} Nd5 {[%clk 00:36:34]} {[%emt 00:03:05]} 29. Bf3
{[%clk 00:24:25]} {[%emt 00:01:41]} Rac8 {[%clk 00:36:11]} {[%emt 00:00:53]} 30.
Qe4 {[%clk 00:22:16]} {[%emt 00:02:38]} Rfd8 {[%clk 00:35:07]} {[%emt
00:01:34]} 31. Ba5 {[%clk 00:21:12]} {[%emt 00:01:34]} Rd7 {[%clk 00:29:34]}
{[%emt 00:06:03]} 32. Rfe1 {[%clk 00:17:23]} {[%emt 00:04:19]} g6 {[%clk
00:29:27]} {[%emt 00:00:36]} 33. g3 {[%clk 00:16:22]} {[%emt 00:01:32]} Rb8
{[%clk 00:25:45]} {[%emt 00:04:11]} 34. Bd2 {[%clk 00:13:05]} {[%emt 00:03:49]}
Bg7 {[%clk 00:24:22]} {[%emt 00:01:52]} 35. h4 {[%clk 00:11:21]} {[%emt
00:02:15]} Nf6 {[%clk 00:21:28]} {[%emt 00:03:23]} 36. Qf4 {[%clk 00:10:39]}
{[%emt 00:01:13]} Rbd8 {[%clk 00:14:34]} {[%emt 00:07:23]} 37. Bc3 {[%clk
00:10:01]} {[%emt 00:01:07]} Qxf4 {[%clk 00:12:14]} {[%emt 00:02:51]} 38. gxf4
{[%clk 00:10:26]} {[%emt 00:00:05]} Nd5 {[%clk 00:12:10]} {[%emt 00:00:33]} 39.
Bg4 {[%clk 00:10:25]} {[%emt 00:00:33]} f5 {[%clk 00:09:48]} {[%emt 00:02:51]}
40. Bf3 {[%clk 00:10:20]} {[%emt 00:00:35]} b4 {[%clk 00:06:50]} {[%emt
00:03:28]} 41. Bxd5+ {[%clk 00:10:03]} {[%emt 00:00:48]} Rxd5 {[%clk 00:06:49]}
{[%emt 00:00:30]} 42. Bxb4 {[%clk 00:09:41]} {[%emt 00:00:53]} Bxd4 {[%clk
00:26:25]} {[%emt 00:10:53]} 43. Rc1 {[%clk 00:37:11]} {[%emt 00:03:00]} Rc8
{[%clk 00:24:50]} {[%emt 00:02:04]} 44. Re2 {[%clk 00:34:57]} {[%emt 00:02:45]}
Rd7 {[%clk 00:15:47]} {[%emt 00:09:33]} 45. Rec2 {[%clk 00:34:18]} {[%emt
00:01:09]} Rdc7 {[%clk 00:15:55]} {[%emt 00:00:20]} 46. Kg2 {[%clk 00:33:27]}
{[%emt 00:01:22]} Kf7 {[%clk 00:16:11]} {[%emt 00:00:15]} 47. Bd6 {[%clk
00:32:53]} {[%emt 00:01:04]} Rc6 {[%clk 00:16:30]} {[%emt 00:00:11]} 48. Be5
{[%clk 00:32:29]} {[%emt 00:00:54]} c3 {[%clk 00:06:21]} {[%emt 00:10:39]} 49.
bxc3 {[%clk 00:29:45]} {[%emt 00:03:14]} Bxe5 {[%clk 00:06:46]} {[%emt
00:00:05]} 50. fxe5 {[%clk 00:30:03]} {[%emt 00:00:11]} Rc4 {[%clk 00:07:14]}
{[%emt 00:00:03]} 51. Kg3 {[%clk 00:28:58]} {[%emt 00:01:34]} Rg4+ {[%clk
00:07:08]} {[%emt 00:00:34]} 52. Kf3 {[%clk 00:27:48]} {[%emt 00:01:43]} Rcc4
{[%clk 00:06:26]} {[%emt 00:01:11]} 53. h5 {[%clk 00:27:32]} {[%emt 00:00:47]}
g5 {[%clk 00:05:38]} {[%emt 00:01:18]} 54. Ra1 {[%clk 00:27:44]} {[%emt
00:00:18]} Rgf4+ {[%clk 00:03:00]} {[%emt 00:03:08]} 55. Kg2 {[%clk 00:27:19]}
{[%emt 00:00:55]} Rg4+ {[%clk 00:03:25]} {[%emt 00:00:05]} 56. Kf1 {[%clk
00:27:13]} {[%emt 00:00:36]} f4 {[%clk 00:02:50]} {[%emt 00:01:04]} 57. f3
{[%clk 00:27:11]} {[%emt 00:00:33]} Rh4 {[%clk 00:03:07]} {[%emt 00:00:13]} 58.
Ra7+ {[%clk 00:27:20]} {[%emt 00:00:21]} Ke6 {[%clk 00:03:13]} {[%emt
00:00:24]} 59. Rxh7 {[%clk 00:27:38]} {[%emt 00:00:12]} Ra4 {[%clk 00:03:40]}
{[%emt 00:00:03]} 60. Ke2 {[%clk 00:24:07]} {[%emt 00:04:01]} Rh2+ {[%clk
00:02:21]} {[%emt 00:01:49]} 61. Kd3 {[%clk 00:23:50]} {[%emt 00:00:47]} Rh3
{[%clk 00:02:47]} {[%emt 00:00:04]} 62. Rh6+ {[%clk 00:23:06]} {[%emt
00:01:14]} Kxe5 {[%clk 00:02:42]} {[%emt 00:00:34]} 63. Re2+ {[%clk 00:22:48]}
{[%emt 00:00:48]} Kd5 {[%clk 00:02:50]} {[%emt 00:00:21]} 64. Re8 {[%clk
00:17:09]} {[%emt 00:06:11]} Rxf3+ {[%clk 00:02:48]} {[%emt 00:00:31]} 65. Kc2
{[%clk 00:17:36]} {[%emt 00:00:04]} Rh3 {[%clk 00:00:51]} {[%emt 00:02:27]} 66.
Rg8 {[%clk 00:16:48]} {[%emt 00:01:16]} Ra2+ {[%clk 00:01:02]} {[%emt
00:00:21]} 67. Kb3 {[%clk 00:16:59]} {[%emt 00:00:18]} Rg2 {[%clk 00:01:26]}
{[%emt 00:00:07]} 68. Kb4 {[%clk 00:16:04]} {[%emt 00:01:26]} f3 {[%clk
00:01:42]} {[%emt 00:00:12]} 69. c4+ {[%clk 00:16:12]} {[%emt 00:00:23]} Kd4
{[%clk 00:01:12]} {[%emt 00:00:58]} 70. Rd6 {[%clk 00:16:09]} {[%emt 00:00:34]}
Ke3 {[%clk 00:01:28]} {[%emt 00:00:14]} 71. Re8+ {[%clk 00:15:51]} {[%emt
00:00:49]} Kf2 {[%clk 00:01:04]} {[%emt 00:00:54]} 72. h6 {[%clk 00:15:51]}
{[%emt 00:00:30]} Kg1 {[%clk 00:01:17]} {[%emt 00:00:16]} 73. Re1+ {[%clk
00:15:15]} {[%emt 00:01:07]} Kh2 {[%clk 00:01:28]} {[%emt 00:00:18]} 74. c5
{[%clk 00:15:06]} {[%emt 00:00:41]} f2 {[%clk 00:01:38]} {[%emt 00:00:19]} 75.
Rf1 {[%clk 00:14:38]} {[%emt 00:00:58]} Rf3 {[%clk 00:00:49]} {[%emt 00:01:19]}
76. h7 {[%clk 00:14:15]} {[%emt 00:00:54]} Rf8 {[%clk 00:01:15]} {[%emt
00:00:03]} 77. Rh6+ {[%clk 00:14:13]} {[%emt 00:00:31]} Kg3 {[%clk 00:01:42]}
{[%emt 00:00:04]} 78. h8=Q {[%clk 00:14:16]} {[%emt 00:00:27]} Rxh8 {[%clk
00:02:09]} {[%emt 00:00:03]} 79. Rxh8 {[%clk 00:14:32]} {[%emt 00:00:13]} Rg1
{[%clk 00:02:37]} {[%emt 00:00:03]} 80. Rh1 {[%clk 00:13:30]} {[%emt 00:01:32]}
Kg2 {[%clk 00:02:46]} {[%emt 00:00:19]} 81. Rfxg1+ {[%clk 00:12:55]} {[%emt
00:01:07]} fxg1=Q {[%clk 00:03:10]} {[%emt 00:00:06]} 82. Rxg1+ {[%clk
00:13:16]} {[%emt 00:00:09]} Kxg1 {[%clk 00:03:39]} 83. c6 {[%clk 00:13:33]}
{[%emt 00:00:14]} g4 {[%clk 00:04:07]} {[%emt 00:00:02]} 84. c7 {[%clk
00:13:49]} {[%emt 00:00:14]} g3 {[%clk 00:04:34]} {[%emt 00:00:03]} 85. c8=Q
{[%clk 00:13:59]} {[%emt 00:00:19]} g2 {[%clk 00:05:02]} {[%emt 00:00:02]} 86.
Qg4 {[%clk 00:13:23]} {[%emt 00:01:05]} Kf2 {[%clk 00:05:15]} {[%emt 00:00:19]}
87. Qf4+ {[%clk 00:13:19]} {[%emt 00:00:34]} Ke2 {[%clk 00:05:27]} {[%emt
00:00:18]} 88. Qg3 {[%clk 00:13:35]} {[%emt 00:00:13]} Kf1 {[%clk 00:05:53]}
{[%emt 00:00:05]} 89. Qf3+ {[%clk 00:13:53]} {[%emt 00:00:11]} Kg1 {[%clk
00:06:21]} {[%emt 00:00:03]} 90. Kc3 {[%clk 00:13:51]} {[%emt 00:00:32]} Kh2
{[%clk 00:06:49]} {[%emt 00:00:02]} 91. Qf2 {[%clk 00:13:41]} {[%emt 00:00:39]}
Kh1 {[%clk 00:07:15]} {[%emt 00:00:05]} 92. Qh4+ {[%clk 00:13:52]} {[%emt
00:00:17]} Kg1 {[%clk 00:07:44]} {[%emt 00:00:03]} 93. Kd2 {[%clk 00:13:23]}
1-0

[Event "Schack-SM 2023: Mastarklassen"]
[Site "Helsingborg Arena, Mellersta Stenbocksgatan 14, Helsingborg, Sweden"]
[Date "2023.07.04"]
[Round "4.4"]
[White "Jogstad, Daniel"]
[Black "Nilsson, Patrik 1978"]
[Result "1/2-1/2"]
[TimeControl "90 minutes for 40 moves + 30 minutes for the rest of games + 30 seconds per move from move one."]
[WhiteTitle "CM"]
[WhiteElo "2131"]
[BlackElo "2167"]

1. d4 {[%clk 01:30:55]} {[%emt 00:00:04]} f5 {[%clk 01:30:46]} {[%emt
00:00:15]} 2. Nc3 {[%clk 01:31:20]} {[%emt 00:00:05]} Nf6 {[%clk 01:30:58]}
{[%emt 00:00:18]} 3. Bg5 {[%clk 01:31:44]} {[%emt 00:00:06]} d5 {[%clk
01:31:00]} {[%emt 00:00:27]} 4. Bxf6 {[%clk 01:31:47]} {[%emt 00:00:28]} exf6
{[%clk 01:31:19]} {[%emt 00:00:10]} 5. e3 {[%clk 01:32:12]} {[%emt 00:00:05]}
Be6 {[%clk 01:31:22]} {[%emt 00:00:28]} 6. Bd3 {[%clk 01:32:36]} {[%emt
00:00:06]} Qd7 {[%clk 01:30:17]} {[%emt 00:01:35]} 7. Nge2 {[%clk 01:32:43]}
{[%emt 00:00:24]} Nc6 {[%clk 01:27:34]} {[%emt 00:03:12]} 8. Nf4 {[%clk
01:32:52]} {[%emt 00:00:20]} Bf7 {[%clk 01:27:18]} {[%emt 00:00:46]} 9. Qf3
{[%clk 01:27:45]} {[%emt 00:05:38]} O-O-O {[%clk 01:24:24]} {[%emt 00:03:24]}
10. Nfe2 {[%clk 01:19:24]} {[%emt 00:08:51]} Ne7 {[%clk 01:20:02]} {[%emt
00:04:52]} 11. h4 {[%clk 01:01:00]} {[%emt 00:18:54]} h5 {[%clk 01:19:04]}
{[%emt 00:01:27]} 12. a4 {[%clk 01:00:55]} {[%emt 00:00:36]} Kb8 {[%clk
00:59:58]} {[%emt 00:19:36]} 13. a5 {[%clk 01:00:32]} {[%emt 00:00:53]} g6
{[%clk 00:55:18]} {[%emt 00:05:09]} 14. b4 {[%clk 00:54:53]} {[%emt 00:06:09]}
Nc8 {[%clk 00:49:44]} {[%emt 00:06:03]} 15. b5 {[%clk 00:53:10]} {[%emt
00:02:14]} Nd6 {[%clk 00:38:52]} {[%emt 00:11:23]} 16. b6 {[%clk 00:40:44]}
{[%emt 00:12:56]} cxb6 {[%clk 00:32:01]} {[%emt 00:07:21]} 17. axb6 {[%clk
00:40:42]} {[%emt 00:00:32]} a6 {[%clk 00:31:59]} {[%emt 00:00:32]} 18. Qg3
{[%clk 00:27:49]} {[%emt 00:13:23]} g5 {[%clk 00:29:09]} {[%emt 00:03:19]} 19.
O-O {[%clk 00:28:04]} {[%emt 00:00:15]} Rg8 {[%clk 00:24:08]} {[%emt 00:05:31]}
20. Qh2 {[%clk 00:28:31]} {[%emt 00:00:03]} gxh4 {[%clk 00:20:44]} {[%emt
00:03:55]} 21. Kh1 {[%clk 00:28:54]} {[%emt 00:00:06]} h3 {[%clk 00:19:53]}
{[%emt 00:01:21]} 22. gxh3 {[%clk 00:28:38]} {[%emt 00:00:46]} h4 {[%clk
00:20:13]} {[%emt 00:00:10]} 23. Nf4 {[%clk 00:22:26]} {[%emt 00:06:42]} Ne4
{[%clk 00:18:46]} {[%emt 00:01:56]} 24. Nb5 {[%clk 00:19:23]} {[%emt 00:03:35]}
Bd6 {[%clk 00:15:22]} {[%emt 00:03:54]} 25. Nxd6 {[%clk 00:19:45]} {[%emt
00:00:08]} Qxd6 {[%clk 00:15:46]} {[%emt 00:00:06]} 26. Bxa6 {[%clk 00:17:30]}
{[%emt 00:02:45]} bxa6 {[%clk 00:13:13]} {[%emt 00:03:02]} 27. Rxa6 {[%clk
00:17:57]} {[%emt 00:00:04]} Nd2 {[%clk 00:12:56]} {[%emt 00:00:47]} 28. Rfa1
{[%clk 00:06:18]} {[%emt 00:12:09]} Nf3 {[%clk 00:12:45]} {[%emt 00:00:40]} 29.
Ra8+ {[%clk 00:05:48]} {[%emt 00:01:00]} Kb7 {[%clk 00:13:09]} {[%emt
00:00:06]} 30. R8a7+ {[%clk 00:05:56]} {[%emt 00:00:22]} Kc6 {[%clk 00:12:46]}
{[%emt 00:00:53]} 31. Rc7+ {[%clk 00:06:00]} {[%emt 00:00:25]} Qxc7 {[%clk
00:05:27]} {[%emt 00:07:50]} 32. bxc7 {[%clk 00:06:25]} {[%emt 00:00:05]} Rc8
{[%clk 00:05:44]} {[%emt 00:00:13]} 33. Qg2 {[%clk 00:02:52]} {[%emt 00:04:03]}
Rxg2 {[%clk 00:06:02]} {[%emt 00:00:12]} 34. Kxg2 {[%clk 00:03:19]} {[%emt
00:00:04]} Nd2 {[%clk 00:06:11]} {[%emt 00:00:20]} 35. f3 {[%clk 00:03:44]}
{[%emt 00:00:06]} Rxc7 {[%clk 00:06:14]} {[%emt 00:00:26]} 36. Ra6+ {[%clk
00:04:02]} {[%emt 00:00:11]} Kb5 {[%clk 00:05:08]} {[%emt 00:01:36]} 37. Rxf6
{[%clk 00:04:30]} {[%emt 00:00:04]} Be8 {[%clk 00:04:16]} {[%emt 00:01:22]} 38.
Rxf5 {[%clk 00:04:47]} {[%emt 00:00:13]} Rxc2 {[%clk 00:03:59]} {[%emt
00:00:46]} 39. Rxd5+ {[%clk 00:03:56]} {[%emt 00:01:21]} Kb4 {[%clk 00:02:07]}
{[%emt 00:02:19]} 40. Rc5 {[%clk 00:02:18]} {[%emt 00:02:11]} Nc4+ {[%clk
00:01:44]} {[%emt 00:00:53]} 41. Kg1 {[%clk 00:02:16]} {[%emt 00:00:30]} Rc1+
{[%clk 00:22:21]} {[%emt 00:09:55]} 42. Kf2 {[%clk 00:31:19]} {[%emt 00:01:27]}
Rc2+ {[%clk 00:22:43]} {[%emt 00:00:08]} 43. Kg1 {[%clk 00:31:33]} {[%emt
00:00:16]} Rc1+ {[%clk 00:23:05]} {[%emt 00:00:08]} 1/2-1/2

[Event "Schack-SM 2023: Mastarklassen"]
[Site "Helsingborg Arena, Mellersta Stenbocksgatan 14, Helsingborg, Sweden"]
[Date "2023.07.04"]
[Round "4.5"]
[White "Sundin, Emanuel"]
[Black "Soppela, Toni"]
[Result "0-1"]
[TimeControl "90 minutes for 40 moves + 30 minutes for the rest of games + 30 seconds per move from move one."]
[WhiteElo "2103"]
[BlackElo "2032"]

1. e4 {[%clk 01:30:42]} {[%emt 00:00:17]} e5 {[%clk 01:30:15]} {[%emt
00:00:46]} 2. Nf3 {[%clk 01:30:59]} {[%emt 00:00:12]} Nc6 {[%clk 01:30:18]}
{[%emt 00:00:27]} 3. d4 {[%clk 01:31:04]} {[%emt 00:00:26]} exd4 {[%clk
01:30:34]} {[%emt 00:00:13]} 4. Bc4 {[%clk 01:31:14]} {[%emt 00:00:20]} Nf6
{[%clk 01:30:32]} {[%emt 00:00:31]} 5. e5 {[%clk 01:31:26]} {[%emt 00:00:18]}
d5 {[%clk 01:30:20]} {[%emt 00:00:43]} 6. Bb5 {[%clk 01:31:45]} {[%emt
00:00:11]} Ne4 {[%clk 01:30:16]} {[%emt 00:00:33]} 7. Nxd4 {[%clk 01:31:56]}
{[%emt 00:00:19]} Bd7 {[%clk 01:30:07]} {[%emt 00:00:39]} 8. Bxc6 {[%clk
01:32:12]} {[%emt 00:00:14]} bxc6 {[%clk 01:30:29]} {[%emt 00:00:09]} 9. O-O
{[%clk 01:32:16]} {[%emt 00:00:26]} Bc5 {[%clk 01:29:55]} {[%emt 00:01:04]} 10.
f3 {[%clk 01:32:21]} {[%emt 00:00:24]} Ng5 {[%clk 01:29:41]} {[%emt 00:00:44]}
11. f4 {[%clk 01:32:27]} {[%emt 00:00:25]} Ne4 {[%clk 01:29:06]} {[%emt
00:01:05]} 12. Be3 {[%clk 01:32:32]} {[%emt 00:00:24]} O-O {[%clk 01:27:18]}
{[%emt 00:02:16]} 13. Nd2 {[%clk 01:29:58]} {[%emt 00:03:06]} f6 {[%clk
01:15:44]} {[%emt 00:12:04]} 14. Nxe4 {[%clk 01:25:35]} {[%emt 00:04:54]} dxe4
{[%clk 01:15:59]} {[%emt 00:00:15]} 15. Qe2 {[%clk 01:17:07]} {[%emt 00:08:58]}
Qe7 {[%clk 01:07:53]} {[%emt 00:08:36]} 16. Kh1 {[%clk 01:07:35]} {[%emt
00:10:02]} Kh8 {[%clk 00:51:35]} {[%emt 00:16:46]} 17. Nb3 {[%clk 00:52:37]}
{[%emt 00:15:29]} Bb6 {[%clk 00:26:21]} {[%emt 00:25:45]} 18. Bd4 {[%clk
00:48:49]} {[%emt 00:04:17]} Bxd4 {[%clk 00:23:08]} {[%emt 00:03:45]} 19. Nxd4
{[%clk 00:49:09]} {[%emt 00:00:09]} c5 {[%clk 00:23:07]} {[%emt 00:00:31]} 20.
Nb3 {[%clk 00:45:56]} {[%emt 00:03:43]} Bf5 {[%emt 00:03:34]} 21. Qc4 {[%clk
00:22:23]} {[%emt 00:24:02]} Rab8 {[%clk 00:16:21]} {[%emt 00:04:13]} 22. Nxc5
{[%clk 00:19:40]} {[%emt 00:03:13]} Rxb2 {[%clk 00:15:32]} {[%emt 00:01:19]} 23.
Nb3 {[%clk 00:18:21]} {[%emt 00:01:48]} e3 {[%clk 00:14:36]} {[%emt 00:01:27]}
24. Nd4 {[%clk 00:14:22]} {[%emt 00:04:29]} Bg4 {[%clk 00:03:24]} {[%emt
00:11:41]} 25. Qc3 {[%clk 00:12:11]} {[%emt 00:02:42]} Qb4 {[%clk 00:02:34]}
{[%emt 00:01:20]} 26. Qxe3 {[%clk 00:11:02]} {[%emt 00:01:39]} c5 {[%clk
00:02:41]} {[%emt 00:00:23]} 27. exf6 {[%clk 00:06:50]} {[%emt 00:04:42]} Qxd4
{[%clk 00:02:30]} {[%emt 00:00:41]} 28. fxg7+ {[%clk 00:07:07]} {[%emt
00:00:13]} Qxg7 {[%clk 00:02:21]} {[%emt 00:00:39]} 29. h3 {[%clk 00:06:27]}
{[%emt 00:01:08]} Bf5 {[%emt 00:00:54]} 30. c3 {[%clk 00:04:45]} {[%emt
00:02:12]} Qxg2# {[%clk 00:02:03]} {[%emt 00:00:25]} 0-1

[Event "Schack-SM 2023: Mastarklassen"]
[Site "Helsingborg Arena, Mellersta Stenbocksgatan 14, Helsingborg, Sweden"]
[Date "2023.07.04"]
[Round "4.6"]
[White "Joensson, Jacob"]
[Black "Liden, Tommy"]
[Result "0-1"]
[TimeControl "90 minutes for 40 moves + 30 minutes for the rest of games + 30 seconds per move from move one."]
[WhiteElo "2039"]
[BlackElo "2107"]

1. d4 {[%clk 01:30:57]} {[%emt 00:00:03]} d5 {[%clk 01:30:53]} {[%emt
00:00:08]} 2. c4 {[%clk 01:31:16]} {[%emt 00:00:10]} e6 {[%clk 01:31:19]}
{[%emt 00:00:04]} 3. Nf3 {[%clk 01:31:39]} {[%emt 00:00:07]} c6 {[%clk
01:31:36]} {[%emt 00:00:13]} 4. Nbd2 {[%clk 01:31:41]} {[%emt 00:00:28]} f5
{[%clk 01:29:14]} {[%emt 00:02:53]} 5. g3 {[%clk 01:32:02]} {[%emt 00:00:08]}
Bd6 {[%clk 01:28:59]} {[%emt 00:00:45]} 6. Bg2 {[%clk 01:32:26]} {[%emt
00:00:07]} Nd7 {[%clk 01:28:19]} {[%emt 00:01:09]} 7. O-O {[%clk 01:31:55]}
{[%emt 00:01:01]} Ngf6 {[%clk 01:28:35]} {[%emt 00:00:14]} 8. b3 {[%clk
01:31:44]} {[%emt 00:00:41]} O-O {[%clk 01:26:33]} {[%emt 00:02:32]} 9. Bb2
{[%clk 01:21:36]} {[%emt 00:10:38]} Ne4 {[%clk 01:24:42]} {[%emt 00:02:21]} 10.
Qc1 {[%clk 01:18:52]} {[%emt 00:03:14]} Qe7 {[%clk 01:24:11]} {[%emt 00:01:01]}
11. Ne5 {[%clk 01:15:11]} {[%emt 00:04:12]} Nxe5 {[%clk 01:21:07]} {[%emt
00:03:33]} 12. dxe5 {[%clk 01:15:34]} {[%emt 00:00:07]} Bc5 {[%clk 01:21:06]}
{[%emt 00:00:31]} 13. Nb1 {[%clk 01:13:03]} {[%emt 00:03:01]} b5 {[%clk
01:10:25]} {[%emt 00:11:11]} 14. Na3 {[%clk 01:08:13]} {[%emt 00:05:20]} bxc4
{[%clk 01:08:22]} {[%emt 00:02:34]} 15. bxc4 {[%clk 01:07:32]} {[%emt
00:01:11]} Ba6 {[%clk 01:08:10]} {[%emt 00:00:42]} 16. Bxe4 {[%clk 00:54:45]}
{[%emt 00:13:17]} fxe4 {[%clk 01:08:04]} {[%emt 00:00:35]} 17. Qc3 {[%clk
00:55:08]} {[%emt 00:00:07]} Rab8 {[%clk 01:03:59]} {[%emt 00:04:36]} 18. Bc1
{[%clk 00:55:26]} {[%emt 00:00:12]} Bb4 {[%clk 00:59:18]} {[%emt 00:05:11]} 19.
Qb3 {[%clk 00:55:11]} {[%emt 00:00:45]} d4 {[%clk 00:50:46]} {[%emt 00:09:03]}
20. Qa4 {[%clk 00:52:00]} {[%emt 00:03:37]} Rb6 {[%clk 00:48:09]} {[%emt
00:03:10]} 21. Rb1 {[%clk 00:49:40]} {[%emt 00:02:50]} Bb7 {[%clk 00:35:29]}
{[%emt 00:13:09]} 22. Nc2 {[%clk 00:47:13]} {[%emt 00:02:57]} Bc5 {[%clk
00:35:38]} {[%emt 00:00:21]} 23. Ba3 {[%clk 00:44:18]} {[%emt 00:03:25]} d3
{[%clk 00:28:49]} {[%emt 00:07:19]} 24. Bxc5 {[%clk 00:36:16]} {[%emt
00:08:32]} Qxc5 {[%clk 00:28:25]} {[%emt 00:00:54]} 25. exd3 {[%clk 00:36:07]}
{[%emt 00:00:38]} Rxb1 {[%clk 00:28:14]} {[%emt 00:00:42]} 26. Rxb1 {[%clk
00:34:49]} {[%emt 00:01:48]} Qxf2+ {[%clk 00:28:27]} {[%emt 00:00:17]} 27. Kh1
{[%clk 00:35:14]} {[%emt 00:00:05]} exd3 {[%clk 00:28:00]} {[%emt 00:00:57]}
0-1